{"text_format":"1","workbook":"xlsx","n_sheets":1,"sheets":["Cotización"],"not_rendered":{"charts":0,"images":2,"macros":1,"external_links":0,"defined_names":1,"comments":0,"pivot_tables":0},"unopened":[],"bounds":{"document_bytes":16777216,"sheet_cells":100000,"rows_first":2000,"rows_last":500,"rows_between":2000,"halvings":0,"cell_chars":16384,"cell_head_chars":4096},"cells_cut":0,"cells_raw":0,"read":"whole","date_system":"1900"}

{"sheet":"Cotización","index":0,"n_rows":42,"n_cols":13,"rows_kept":42,"cut":false,"hidden":false,"merged":[[12,3,12,10],[13,3,13,10],[14,3,14,10],[10,9,10,10],[8,11,8,12],[9,1,9,3],[9,5,9,8],[10,1,10,8],[10,11,10,12],[0,4,1,9],[0,10,1,12],[2,4,4,9],[2,10,4,12],[5,0,5,3],[6,1,6,4],[7,1,7,3],[7,5,7,8],[8,1,8,4],[8,5,8,8],[32,3,32,10],[15,3,15,10],[22,3,22,10],[23,3,23,10],[25,3,25,10],[26,3,26,10],[20,3,20,10],[21,3,21,10],[16,3,16,10],[17,3,17,10],[18,3,18,10],[19,3,19,10],[39,3,39,6],[39,11,39,12],[40,11,40,12],[41,11,41,12],[24,3,24,10],[33,3,33,10],[34,3,34,10],[35,3,35,10],[36,3,36,10],[37,3,37,10],[38,11,38,12],[27,3,27,10],[28,3,28,10],[29,3,29,10],[30,3,30,10],[31,3,31,10]]}
[null,null,null,null,"DISTRIBUIDORA FERRETERA",null,null,null,null,null,"COTIZACIÓN N°"]
[]
[null,null,null,null,"FERRETERÍA INDUSTRIAL - TUBERÍAS EN FIERRO GALVANIZADO\nHERRAMIENTAS DOMÉSTICAS E INDUSTRIALES - RESINAS - INSUMOS  FIBRA DE VIDRIO - PINTURAS EN GENERAL",null,null,null,null,null,2004]
[]
[]
[]
["SEÑORES:","CIENCIA INTERNACIONAL"]
[]
["RUC :","20137290180",null,null,null,null,null,null,null,"FECHA:","25 DE ","2024-01-01"]
[]
["DIRECCIÓN:","AV. REPUBLICA DE PANAMA #5768 URB SAN ANTONIO-MIRAFLORES",null,null,null,null,null,null,null,"        TOTAL A PAGAR",null,{"$f":"L42","v":478}]
[]
["Código","Cantidad","Unidad de\nmedida","Descripción",null,null,null,null,null,null,null,"Precio\nUnitario","Importe\nFinal"]
[null,2,"GLN","ESMALTE SINTETICO SILICONADO COLOR ROJO ANYPSA MAESTRO ",null,null,null,null,null,null,null,48,{"$f":"IF(A14=\"SUBTOTAL\",SUMIF($A$14:$A$38,A13,$M$14:$M$38),IF(L14=\"\",\"\",L14*B14))","v":96}]
[null,2,"GLN","ESMALTE SINTETICO SILICONADO COLOR VERDE  ANYPSA MAESTRO ",null,null,null,null,null,null,null,48,{"$f":"IF(A15=\"SUBTOTAL\",SUMIF($A$14:$A$38,A14,$M$14:$M$38),IF(L15=\"\",\"\",L15*B15))","v":96}]
[null,2,"GLN","ESMALTE SINTETICO SILICONADO COLOR AMARILLO ANYPSA MAESTRO ",null,null,null,null,null,null,null,48,{"$f":"IF(A16=\"SUBTOTAL\",SUMIF($A$14:$A$38,A15,$M$14:$M$38),IF(L16=\"\",\"\",L16*B16))","v":96}]
[null,4,"UND","THINNER AUTOMOTRIZ ANYPSA",null,null,null,null,null,null,null,18,{"$f":"IF(A17=\"SUBTOTAL\",SUMIF($A$14:$A$38,A16,$M$14:$M$38),IF(L17=\"\",\"\",L17*B17))","v":72}]
[null,4,"UND","BROCHA TUMY DE 3\"",null,null,null,null,null,null,null,29.5,118]
[null,null,null,null,null,null,null,null,null,null,null,null,""]
[null,null,null,null,null,null,null,null,null,null,null,null,""]
[null,null,null,null,null,null,null,null,null,null,null,null,""]
[null,null,null,null,null,null,null,null,null,null,null,null,""]
[null,null,null,null,null,null,null,null,null,null,null,null,""]
[null,null,null,null,null,null,null,null,null,null,null,null,""]
[null,null,null,null,null,null,null,null,null,null,null,null,""]
[null,null,null,null,null,null,null,null,null,null,null,null,""]
[null,null,null,null,null,null,null,null,null,null,null,null,""]
[null,null,null,"CTA (BCP) 191 1940909039 DISTRIBUIDORA FERRETERA VITACOLOR ",null,null,null,null,null,null,null,null,""]
[null,null,null,null,null,null,null,null,null,null,null,null,""]
[null,null,null,null,null,null,null,null,null,null,null,null,""]
[null,null,null,null,null,null,null,null,null,null,null,null,""]
[null,null,null,null,null,null,null,null,null,null,null,null,""]
[null,null,null,null,null,null,null,null,null,null,null,null,""]
[null,null,null,null,null,null,null,null,null,null,null,null,""]
[null,null,null,null,null,null,null,null,null,null,null,null,""]
[null,null,null,null,null,null,null,null,null,null,null,null,""]
[null,null,null,null,null,null,null,null,null,null,null,null,""]
[null,null,null,null,null,null,null,null,null,null,null,null,""]
[null,null,null,null,null,null,null,null,"SUB TOTAL",null,null,{"$f":"+L42-L40","v":405.08474576271186}]
[null,"Forma de pago:",null,"Al contado",null,null,null,null,"IGV",null,0.18,{"$f":"K40*L42/(1+K40)","v":72.915254237288138}]
[null,"Transferencia:",null,"Cuenta corriente en soles (BCP) : #191-1940909-0-39",null,null,null,null,"DESCUENTO"]
[null,null,null,"Número Interbancario # 002-191-001940909039-56",null,null,null,null,"TOTAL A PAGAR",null,null,{"$f":"SUMPRODUCT(B14:B38,L14:L38)-L41","v":478}]